Cogmind - Beta 14 @@@ ROGUE MODE // 2024.08.23 @ 15:51:57 // AFD2020/Player2 Player: Daffa0360 Result: Self-destructed Performance ------------- Evolutions (2) 1000 Regions Visited (5) 1000 Robots Destroyed (22) 110 Value Destroyed (546) 546 Prototype IDs (27) 540 Alien Tech Used (0) 0 Bonus (582) 582 TOTAL SCORE: 3778 Bonus ------- Follower Combat Kills 402 Aligned with FarCom 300 Friendly Fire -120 Cogmind --------- Core Integrity 402/550 Matter 279/300 Energy 100/100 System Corruption 0% Temperature Cool (12) Movement Core (450) Ox8 Location -8/Materials Parts ------- > --- POWER (1) -------- (None) > --- PROPULSION (2) --- Light Treads > --- UTILITY (6) ------ Small Storage Unit Advanced Terrain Scan Processor Advanced Targeting Computer Hardened Medium Armor Plating Improved Field Recycling Unit > --- WEAPON (2) ------- Assault Rifle > --- INVENTORY (8) ---- Light Ion Engine Improved Ion Engine Aluminum Leg Compact Wheel Improved Heat Sink Advanced Weight Redist. System Mining Laser Blade Trap Peak State ------------ > --- POWER ------------ Light Nuclear Core > --- PROPULSION ------- Light Treads Wheel > --- UTILITY ---------- Small Storage Unit Advanced Terrain Scan Processor Advanced Targeting Computer Cloak of Protection Hardened Medium Armor Plating Improved Field Recycling Unit > --- WEAPON ----------- Heavy EM Shotgun Assault Rifle > --- INVENTORY -------- Light Ion Engine Aluminum Leg Compact Wheel Improved Heat Sink Medium Laser Mining Laser Blade Trap [Rating: 33] Favorites ----------- Power Light Ion Engine Engine Light Ion Engine Power Core Light Nuclear Core Propulsion Aluminum Leg Treads Light Treads Leg Aluminum Leg Wheel Wheel Utility Small Storage Unit Device Cloak of Protection Storage Small Storage Unit Processor Advanced Targeting Computer Protection Hardened Medium Armor Plating Weapon Assault Rifle Energy Gun Medium Laser Ballistic Gun Assault Rifle Build | -11 -10 -10 -10 -9 -8 ------- Run | Yrd Mat Min Exi Min Mat Slots Evolved 4 | . . . . . 4 Power . | . . . . . . Propulsion . | . . . . . . Utility 4 | . . . . . 4 Weapon . | . . . . . . Parts Attached 15 | . 1 . 2 . 12 Power 4 | . . . 1 . 3 Engine 2 | . . . 1 . 1 Core 2 | . . . . . 2 Reactor . | . . . . . . Propulsion 3 | . . . . . 3 Treads 2 | . . . . . 2 Leg . | . . . . . . Wheel 1 | . . . . . 1 Hover . | . . . . . . Flight . | . . . . . . Utility 5 | . . . 1 . 4 Device 2 | . . . 1 . 1 Storage . | . . . . . . Processor 2 | . . . . . 2 Hackware . | . . . . . . Protection 1 | . . . . . 1 Artifact . | . . . . . . Weapon 3 | . 1 . . . 2 Energy Gun 3 | . 1 . . . 2 Energy Cannon . | . . . . . . Ballistic Gun . | . . . . . . Ballistic Cannon . | . . . . . . Launcher . | . . . . . . Special Weapon . | . . . . . . Impact Weapon . | . . . . . . Slashing Weapon . | . . . . . . Piercing Weapon . | . . . . . . Special Melee Weapon . | . . . . . . Unidentified Prototypes 2 | . . . . . 2 Parts Lost 6 | . 1 . . . 5 Power 1 | . . . . . 1 Propulsion 2 | . . . . . 2 Utility 1 | . . . . . 1 Weapon 2 | . 1 . . . 1 Highest Loss Streak 3 | . 1 . . . 3 To Critical Strikes . | . . . . . . Average Slot Usage (%) 87 | . 84 85 92 100 86 Engine 9 | . 14 14 14 14 2 Core 1 | . . . . . 4 Treads 3 | . . . . . 8 Leg 19 | . 28 28 28 28 6 Wheel 1 | . . . . . 3 Device 8 | . . . 6 14 15 Storage 11 | . 14 14 14 14 9 Processor 5 | . . . . . 14 Protection 1 | . . . . . 3 Energy Gun 11 | . 13 14 14 14 8 Ballistic Gun 11 | . 14 14 14 14 9 Peak Build Rating 33 | 6 6 6 14 14 33 Average Rating 14 | 6 5 6 9 14 24 On Entrance 8 | 6 6 6 6 14 14 Naked Turns . | . . . . . . Heaviest Build 42 | 12 12 12 22 22 42 Greatest Support 40 | 20 20 20 20 20 40 Greatest Overweight (x) 4 | . . . 1 1 4 Average Overweight (x) . | . . . . 1 2 Largest Inventory Capacity 8 | 8 8 8 8 8 8 Average Capacity 8 | 8 8 8 8 8 8 Most Carried 8 | 6 6 7 8 7 8 Average Carried 6 | 6 5 6 7 7 7 Final Capacity 8 | 8 8 8 8 8 8 Final Carried 8 | 6 5 7 7 7 8 Class Distribution -------------------- 100% | Mutant Dominant Class ---------------- Mutant | -10/Materials Mutant | -10/Mines Mutant | -10/Exiles Mutant | -9/Mines Mutant | -8/Materials Resources | -11 -10 -10 -10 -9 -8 ----------- Run | Yrd Mat Min Exi Min Mat Matter Collected 557 | 193 69 18 . 32 245 Remotely . | . . . . . . Salvage Created 705 | . 140 . . 87 478 Parts 34 | . 8 . . . 26 Haulers Intercepted 2 | . . . . . 2 Recyclers Shooed . | . . . . . . Parts Field Recycled . | . . . . . . Retrieved Matter . | . . . . . . Parts Self-Destructed . | . . . . . . Prevented . | . . . . . . Kills | -11 -10 -10 -10 -9 -8 ------- Run | Yrd Mat Min Exi Min Mat Combat Hostiles Destroyed 17 | . 5 . . 2 10 Guns 17 | . 5 . . 2 10 Classes Destroyed 6 | . 2 . . . 4 Worker 2 | . . . . . 2 Tunneler 1 | . . . . . 1 Hauler 2 | . . . . . 2 Swarmer 7 | . 3 . . . 4 Grunt 8 | . 2 . . 2 4 Sentry 2 | . . . . . 2 Best Kill Streak 4 | . 3 . . 2 4 Combat Bots Only 4 | . 3 . . 2 4 Max Kills in Single Turn 1 | . 1 . . 1 1 Gunslinging . | . . . . . . Exploded . | . . . . . . Melee . | . . . . . . Uniques/NPCs Destroyed . | . . . . . . Combat | -11 -10 -10 -10 -9 -8 -------- Run | Yrd Mat Min Exi Min Mat Hostile Shots Fired 109 | . 40 . . 4 65 Missed 27 | . 13 . . 2 12 Damage Taken 1123 | . 292 . . 23 808 Core 102 | . 49 . . . 53 Absorbed by Shields . | . . . . . . Core Remaining (%) 87 | 100 . . . 74 . Volleys Fired 86 | . 25 . . 4 57 Largest 2 | . 2 . . 2 2 Hottest 70 | . 70 . . 70 70 Shots Fired 162 | . 47 . . 8 107 Gun 162 | . 47 . . 8 107 Cannon . | . . . . . . Launcher . | . . . . . . Special . | . . . . . . Kinetic 86 | . 25 . . 4 57 Thermal 67 | . 13 . . 4 50 Explosive . | . . . . . . Electromagnetic 9 | . 9 . . . . Robot Hit Streak 19 | . 6 . . 10 19 Robot Miss Streak 4 | . 3 . . . 4 Penetration Max . | . . . . . . Secondary Targets 3 | . 1 . . . 2 Max Gunslinging Chain 1 | . 1 . . . 1 Shots Hit Robots 110 | . 28 . . 8 74 Core Hits 40 | . 11 . . 3 26 Critical Kills . | . . . . . . Critical Parts Destroyed 2 | . 1 . . . 1 Critical Strikes 7 | . 2 . . 1 4 Burn 5 | . 1 . . 1 3 Destroy 2 | . 1 . . . 1 Melee Attacks . | . . . . . . Impact . | . . . . . . Slashing . | . . . . . . Piercing . | . . . . . . Sneak Attacks . | . . . . . . Combat Hostiles . | . . . . . . Follow-up Attacks . | . . . . . . Damage Inflicted 1514 | . 386 2 . 106 1020 Guns 1512 | . 386 . . 106 1020 Cannons . | . . . . . . Explosions . | . . . . . . Melee . | . . . . . . Ramming 2 | . . 2 . . . Kinetic 798 | . 218 . . 56 524 Thermal 658 | . 112 . . 50 496 Explosive . | . . . . . . Electromagnetic 56 | . 56 . . . . Impact . | . . . . . . Slashing . | . . . . . . Piercing . | . . . . . . Highest Corruption . | . . . . . . Average Corruption . | . . . . . . Corruption Purged . | . . . . . . Corruption Blocked . | . . . . . . Overload Shots . | . . . . . . Overflow Damage . | . . . . . . Projectiles . | . . . . . . Explosions . | . . . . . . Melee . | . . . . . . Knockbacks 1 | . . 1 . . . Impact 1 | . . 1 . . . Kinetic . | . . . . . . Secondary . | . . . . . . Self-Inflicted Damage . | . . . . . . Shots . | . . . . . . Rammed . | . . . . . . Targets Rammed 1 | . . 1 . . . Kicked 1 | . . 1 . . . Crushed . | . . . . . . Highest Temperature 126 | . 57 . . 30 126 Average Temperature 27 | . 24 . . 14 31 Received Heat Transfer 480 | . 117 . . 12 351 Siege Activations . | . . . . . . Robots Corrupted . | . . . . . . Combat Hostiles . | . . . . . . Parts Fried . | . . . . . . Impact Corruptions . | . . . . . . Robots Melted . | . . . . . . Combat Hostiles . | . . . . . . Parts Melted 2 | . 1 . . . 1 Heat Transferred 2219 | . 407 . . 222 1590 Parts Sabotaged . | . . . . . . Parts Stolen . | . . . . . . Parts Stripped . | . . . . . . Power Chain Reactions . | . . . . . . Alert | -11 -10 -10 -10 -9 -8 ------- Run | Yrd Mat Min Exi Min Mat Peak Influence 410 | . 284 110 . 62 410 Initial 110 | . . 110 . . 24 Average 106 | . 79 66 . 59 146 Maximum Alert Level 2 | . 1 . . . 2 Low Security (%) 80 | 100 84 100 . 100 64 Level 1 19 | . 15 . . . 35 Level 2 . | . . . . . . Level 3 . | . . . . . . Level 4 . | . . . . . . Level 5 . | . . . . . . High Security . | . . . . . . Max Security . | . . . . . . Squads Dispatched 5 | . 1 . . . 4 Investigation . | . . . . . . Extermination . | . . . . . . Reinforcement 2 | . 1 . . . 1 Assault . | . . . . . . Garrison 3 | . . . . . 3 Intercept . | . . . . . . Searches Triggered . | . . . . . . Construction Impeded . | . . . . . . Haulers Reinforced . | . . . . . . Active Scanning Responses . | . . . . . . Cargo Convoy Interrupts . | . . . . . . Stealth | -11 -10 -10 -10 -9 -8 --------- Run | Yrd Mat Min Exi Min Mat Distress Signals 4 | . 1 . . . 3 Communications Jammed . | . . . . . . Distress Signals . | . . . . . . Times Spotted 42 | . 11 . . 2 29 Peak Tracking Total 6 | . 3 . . 2 6 Tactical Retreats 1 | . 1 . . . . Traps | -11 -10 -10 -10 -9 -8 ------- Run | Yrd Mat Min Exi Min Mat Traps Triggered . | . . . . . . Indirectly . | . . . . . . Trap Hack Attempts . | . . . . . . Triggered . | . . . . . . Disarmed . | . . . . . . Reprogrammed . | . . . . . . Reused . | . . . . . . Traps Extracted . | . . . . . . Installed . | . . . . . . Triggered . | . . . . . . Most Traps Carried 1 | . . 1 1 1 1 Machines | -11 -10 -10 -10 -9 -8 ---------- Run | Yrd Mat Min Exi Min Mat Machines Disabled 2 | . 1 . . . 1 Max in Single Turn . | . . . . . . Machines Repaired . | . . . . . . Machines Dismantled . | . . . . . . Machines Sabotaged . | . . . . . . Overloaded Fab Kills . | . . . . . . Hacking | -11 -10 -10 -10 -9 -8 --------- Run | Yrd Mat Min Exi Min Mat Machines Accessed 5 | . 1 . 1 . 3 Terminals 4 | . 1 . . . 3 Fabricators . | . . . . . . Repair Stations . | . . . . . . Recycling Units . | . . . . . . Scanalyzers . | . . . . . . Garrison Access . | . . . . . . Total Hacks 13 | . 2 . 1 . 10 Successful 8 | . 2 . 1 . 5 Failed 5 | . . . . . 5 Catastrophic . | . . . . . . Database Lockouts . | . . . . . . Manual 3 | . . . 1 . 2 Terminals 12 | . 2 . . . 10 Fabricators . | . . . . . . Repair Stations . | . . . . . . Recycling Units . | . . . . . . Scanalyzers . | . . . . . . Garrison Access . | . . . . . . Terminal Hacks 8 | . 2 . 1 . 5 Prototype ID Bank 1 | . . . . . 1 Alert Level 2 | . 1 . . . 1 Locate Traps 2 | . 1 . . . 1 Surveillance Status 1 | . . . . . 1 Hauler Manifests 1 | . . . . . 1 Derelict Proto ID Bank 1 | . . . 1 . . Fabricator Hacks . | . . . . . . Repair Station Hacks . | . . . . . . Recycling Unit Hacks . | . . . . . . Scanalyzer . | . . . . . . Garrison Access Hacks . | . . . . . . Unauthorized Hacks . | . . . . . . Terminals . | . . . . . . Fabricators . | . . . . . . Repair Stations . | . . . . . . Recycling Units . | . . . . . . Scanalyzers . | . . . . . . Garrison Access . | . . . . . . Data Cores Recovered . | . . . . . . Used . | . . . . . . Hacking Detections 4 | . 1 . . . 3 Full Trace Events . | . . . . . . Feedback Events . | . . . . . . Feedback Blocked . | . . . . . . Robot Schematics Acquired . | . . . . . . Robots Built . | . . . . . . Authchips . | . . . . . . Time . | . . . . . . Total Robot Build Rating . | . . . . . . Part Schematics Acquired . | . . . . . . Parts Built . | . . . . . . Authchips . | . . . . . . Time . | . . . . . . Total Part Build Rating . | . . . . . . Parts Repaired . | . . . . . . Time . | . . . . . . Parts Recycled . | . . . . . . Recycled Matter . | . . . . . . Retrieved Matter . | . . . . . . Retrieved Components . | . . . . . . Parts Scanalyzed . | . . . . . . Part Schematics Acquired . | . . . . . . Parts Damaged . | . . . . . . Bothacking | -11 -10 -10 -10 -9 -8 ------------ Run | Yrd Mat Min Exi Min Mat Used RIF Installer . | . . . . . . Robots Hacked . | . . . . . . Non-combat . | . . . . . . Combat . | . . . . . . Robot Hacks Applied . | . . . . . . Relay Couplers Released . | . . . . . . Fabnet Peak Effective % . | . . . . . . Robots Rewired . | . . . . . . Allies Hacked . | . . . . . . Hacks Repelled . | . . . . . . Allies | -11 -10 -10 -10 -9 -8 -------- Run | Yrd Mat Min Exi Min Mat Total Allies 6 | . 1 5 . . . Largest Group 6 | . 1 6 6 1 1 Highest-Rated Group 143 | . 57 141 143 60 74 Highest-Rated Ally 74 | . 57 57 59 60 74 Total Orders 3 | . . . 3 . . STAY 3 | . . . 3 . . Ally Attacks 64 | . 2 . . 4 58 Total Damage 2002 | . 161 . . 46 1795 Kills 18 | . 4 . . . 14 Allies Corrupted . | . . . . . . Allies Melted . | . . . . . . Intel | -11 -10 -10 -10 -9 -8 ------- Run | Yrd Mat Min Exi Min Mat Robot Analysis Total . | . . . . . . Derelict Logs Recovered 3 | . . 2 . 1 . Drone Launches . | . . . . . . Drone Recoveries . | . . . . . . Exploration | -11 -10 -10 -10 -9 -8 ------------- Run | Yrd Mat Min Exi Min Mat Turns Passed 2947 | 27 336 664 515 203 1202 Spaces Moved 1389 | 23 119 498 247 97 405 Core . | . . . . . . Treads 73 | . . . . . 73 Legs 1106 | 23 119 498 247 97 122 Wheels 210 | . . . . . 210 Hover . | . . . . . . Flight . | . . . . . . Fastest Speed 110 | 120 120 120 120 190 110 Average Speed 141 | 120 120 120 148 190 158 Slowest Speed 240 | 120 120 120 190 190 240 Overloaded Moves . | . . . . . . Propulsion Burnouts . | . . . . . . Robots Hopped . | . . . . . . Cave-ins Triggered . | . . . . . . Exploration Rate (%) 43 | 3 27 95 60 33 40 Regions Visited 5 Branch Regions 3 Pre-discovered Areas 2 | . . 2 . . . Known Exits Taken . | . . . . . . Unknown Exits Taken 5 | 1 1 1 1 1 . Scrap Searched 2 | . . 1 . 1 . Spaces Dug . | . . . . . . Terrain Destroyed . | . . . . . . Melee . | . . . . . . Projectile . | . . . . . . AOE . | . . . . . . Terrain Rammed . | . . . . . . Walls Destroyed . | . . . . . . Machines Disabled . | . . . . . . Actions | -11 -10 -10 -10 -9 -8 --------- Run | Yrd Mat Min Exi Min Mat Total 2211 | 22 265 564 394 108 858 Wait 707 | . 121 64 145 8 369 Move 1384 | 22 118 497 246 96 405 Hop . | . . . . . . Pick Up 12 | . . 2 1 . 9 Fast Attach 3 | . . . . . 3 Attach 7 | . 1 . 1 . 5 Detach . | . . . . . . Swap 5 | . . . 1 . 4 Drop 6 | . . . . . 6 Fire 86 | . 25 . . 4 57 Melee . | . . . . . . Ram . | . . . . . . Kick 1 | . . 1 . . . Crush . | . . . . . . Escape Stasis . | . . . . . . Rewire . | . . . . . . Trap . | . . . . . . Miscellaneous . | . . . . . . Route ------- -11/Scrapyard -10/Materials (discovered 2 exits: [*Mat] / [*Min]) -10/Mines (discovered 3 exits: [*Mat x2] / *Exi) -10/Exiles -9/Mines -8/Materials (discovered 2 exits: Fac / Sto) History --------- Turn | Location | Event 1 | -11/Scrapyard | Discovered new exit (range 3) 28 | -11/Scrapyard | Entered Materials 241 | -10/Materials | Discovered new exit (range 15) 307 | -10/Materials | Discovered new exit (range 8) 310 | -10/Materials | Build established: Mutant 364 | -10/Materials | Entered Mines 365 | -10/Mines | Learned location of Storage (-8) 455 | -10/Mines | Learned 8 Materials zone layouts 515 | -10/Mines | Found a hidden stash of uninstalled traps 757 | -10/Mines | Discovered new exit (range 9) 893 | -10/Mines | Discovered new exit (range 6) 909 | -10/Mines | Assisted by bots powering up and referring to "LRC-V3" 999 | -10/Mines | Deemed a non-threat by the Exiles lab entrance 999 | -10/Mines | Discovered new exit (range 5) 1028 | -10/Mines | Entered Exiles 1028 | -10/Exiles | Accompanied by 5 allies 1058 | -10/Exiles | Led the pair of lost Derelicts to a safe place 1065 | -10/Exiles | Met 8R-AWN 1157 | -10/Exiles | Met EX-HEX 1191 | -10/Exiles | Met EX-BIN 1255 | -10/Exiles | Aligned with FarCom system 1257 | -10/Exiles | Given EX-Vault access code 1287 | -10/Exiles | Opened EX-Vault 1294 | -10/Exiles | Found Cloak of Protection 1381 | -10/Exiles | Warned to stay clear of 0b10 Research branches 1432 | -10/Exiles | Met EX-DEC 1499 | -10/Exiles | Discovered new exit (range 12) 1543 | -10/Exiles | Stole two prototypes: Cloak of Protection, YOLO Cannon 1543 | -10/Exiles | Entered Mines 1654 | -9/Mines | Learned Materials emergency access door positions 1725 | -9/Mines | Discovered new exit (range 5) 1746 | -9/Mines | Entered Materials 1746 | -8/Materials | Evolved 4 slots: Utility x4 1747 | -8/Materials | Identified exit to Storage 1747 | -8/Materials | Identified exit to Factory 1891 | -8/Materials | Garrison activated, responded to threat 2948 | -8/Materials | Self-destructed Last Messages --------------- 02832_ Acquired 30 matter. 02896_ S-10 Pest destroyed. 02901_ K-01 Serf collects debris. 02901_ S-10 Pest destroyed. 02901_ Switching to secondary target: S-10 Pest. 02905_ K-01 Serf collects debris. 02911_ S-10 Pest destroyed. 02926_ O-16 Technician: "IFF HANDSHAKE FAILED. SECURING TERMINAL." 02926_ O-16 Technician sends out distress signal. 02933_ ALERT: Hostiles spotted, dispatching reinforcements to Terminal M010. 02936_ U-05 Engineer builds a Wall. 02938_ Cloak of Protection destroyed. 02938_ U-05 Engineer builds a Door. 02940_ G-47 Trooper destroyed. 02946_ Med. Laser destroyed. 02948_ K-01 Serf collects debris. 02948_ Wheel destroyed. Map ----- +----------------------------------------------------+ | ?????????????????????????#### | | ????????????????????????? | | ?????????????????????????###########+####### | | ?????????????????????????######### #???### | | ????????????????????????? ## #?????# | | ????????????????????????? ## #?????# | | ????????????????????????? ## ####### | | ????????????????????????? ## # | | ????????????????????????? ## + | | ????????????????????????? ## # | | ???????????????????? ?? ## # """ | | ???????????????????? ?? ## # """"" | | ???????????????????#g #? ## # """"" | | ???????????????????+ g #?######### # """"" | | ???????????????????#g #?????????# # """ | | ???????????????????# t#?????????############# | | ???????????????????# #####??????????######## | | ???????????????????# [[#??????????# | | ?????????# #=g [[#??????????# | | ?????????###+#######%! ]]#??????????# | | ???????????# #?????#* ] #??????????# #### | | ???????????# #?????# ^^ #??????????# #### | | ?########### #?????# ^^ #??????????# ## | | ?# # #???### k#####?????????## ## " | | ?# # ######[ l ############## % # " | | ?# # =%** % @ w # " | | ?# + =%[%* u @ + | | ?# # === t # | | ?# """ """ ### ## u ##########+### # ! | | ?# """ """ #?# ####+#####??# ## ## | | ?# """ """ #?# + #??## !! ""## #### | | ?###########?#!### #???# !! T"## #??? | | ???###########%#?# #???# ""## #??? | | ???# T #?# #???# ## #??? | | ???# #?# #???#% ## #??? | | ???# #?# #???######### #??? | | ???# [[[ #?# #????######## #??? | | ???# [ [ = #?# #????# ! # #### | | ???#^^ ![= #?# #????#! # ## | | ???#^^ """ #?##########????# " " + ## | | ???### """"" #??????########## "R" # ## " | | ?##### """"" #??????# # """ # ## " | | ?##! """"" ######## /!! # # ## " | | ?#! " # ]!! ######## #??? | | ?#! [ #/ !! # # #??? | | ?#! =[%! + # # #??? | | ?#! #+##### %!*= # " " !# ! + %#??? | | ?##! # ## %%= # "T" # # | | ?##### ####+######## """ + % # % | | ?????# ## #???# # [ !# | +----------------------------------------------------+ Best States ------------- Heat Dissipation 31 Energy Generation 14 Energy Capacity 250 Matter Stores 300 Matter Capacity 300 Sight Range 16 Terrain Scan Density 210 Cloak Strength 5 Armor Coverage 225 Evasion (%) 55 Targeting Accuracy 8 Recoil Reduction 2 Item Schematics ----------------- None Robot Schematics ------------------ None Fabricated ------------ Nothing Alien Tech Used ----------------- None Achievements -------------- None Challenges ------------ None Player 2 | -11 -10 -10 -10 -9 -8 ---------- Run | Yrd Mat Min Exi Min Mat Slots Evolved 4 | . . . . 4 . Power 1 | . . . . 1 . Propulsion 3 | . . . . 3 . Utility . | . . . . . . Weapon . | . . . . . . Parts Attached 50 | . 8 . 18 2 22 Parts Lost 1 | . . . . . 1 Damage Taken 660 | . 14 . . 15 631 Core 109 | . 14 . . . 95 Player 2/Cogmind (%) 51 | . 22 . . . 64 Absorbed by Shields . | . . . . . . Damage Inflicted 2002 | . 161 . . 46 1795 Player 2/Cogmind (%) 56 | . 29 . . 30 63 Combat Hostiles Destroyed 12 | . 2 . . . 10 Player 2/Cogmind (%) 41 | . 28 . . . 50 Game ------ Seed NetworkFactoryGun Manual? 0 Play Time 00:17:16 Cumulative 59.7 hours Start 2024.08.23 @ 15:34:18 End 2024.08.23 @ 15:51:57 Sessions 1 Manual Loads 0 Difficulty Rogue Special Mode AFD2020/Player2 Game No. 101 Rogue 97 Adventurer 4 Explorer 0 Win Type - Total 0 Types 0/0/0/0/0/0/0/0/0 Lore% 27 Gallery% 42 Achievement% 33 Wizard Run 0 Options --------- Layout 2 ASCII 0 Keyboard 0 Movement Mouse Keybinds 0 Fullscreen 2 Font 24/Smallcaps Map View 50x44 Zoom Use 0% Tactical HUD 1 Map Filters NONE Filters NONE Steam 1 RUN: fe2ec9d3-68bf-4560-a95c-4e05c2f24015